bitfinex/quotes_BTCUSD_20220303
["timestamp","ask_amount","ask_price","bid_price","bid_amount"]
[1646341357389,0.9,41977.0,41952.0,0.00119183]
[1646341357590,0.02382,41969.0,41952.0,0.00119183]
[1646341357788,0.07152,41969.0,41952.0,0.00119183]
[1646341357988,0.22152,41969.0,41952.0,0.00119183]
[1646341358188,0.32152,41969.0,41950.0,0.0001]
[1646341358386,0.02382,41967.0,41950.0,0.19814067]
[1646341358644,0.059624,41965.0,41950.0,0.0001]
[1646341358845,0.07152,41964.0,41950.0,0.0001]
[1646341359045,0.64472,41964.0,41950.0,0.0001]
[1646341359244,0.1,41963.0,41950.0,0.0001]
[1646341359445,0.0477,41962.0,41950.0,0.0001]
[1646341359645,0.0727,41962.0,41950.0,0.19992433]
[1646341359845,0.0727,41962.0,41951.0,0.3584558]
[1646341360046,0.119258,41961.0,41957.0,0.05560301]
[1646341360249,0.16,41965.0,41958.0,0.7211658]
[1646341360447,0.16,41965.0,41954.0,0.3822758]
[1646341360648,0.16,41965.0,41955.0,0.38653]
[1646341360947,0.16,41965.0,41960.0,0.36271]
[1646341361146,0.32093165,41978.0,41961.0,0.3584558]
[1646341361546,0.32093165,41978.0,41958.0,0.3586261]
[1646341361547,0.0477,41977.0,41958.0,0.3586261]
[1646341361745,0.0477,41977.0,41958.0,0.35871125]
[1646341361746,0.0727,41977.0,41958.0,0.35871125]
[1646341361948,0.059612,41971.0,41958.0,0.00025545]
[1646341362147,0.059612,41971.0,41958.0,0.0001703]
[1646341362148,0.05961274,41968.0,41958.0,0.0001703]
[1646341362398,0.059611,41965.0,41955.0,0.004]
[1646341362598,0.02382,41964.0,41961.0,8.514e-05]
[1646341362800,0.3584558,41964.0,41961.0,8.514e-05]
[1646341363000,0.07152,41963.0,41961.0,0.00017028]
[1646341363202,0.9059558,41962.0,41961.0,0.00025542]
[1646341363399,0.9536558,41962.0,41961.0,0.00025542]
[1646341363602,1.33009395,41962.0,41961.0,0.00017028]
[1646341363798,1.33009395,41962.0,41961.0,8.514e-05]
[1646341363998,1.33009395,41962.0,41955.0,0.00034062]
[1646341363999,0.11924954,41959.0,41950.0,0.0001]
[1646341364199,0.50152534,41959.0,41950.0,0.0001]
[1646341364399,0.47770534,41959.0,41950.0,0.0001]
[1646341365398,0.47770534,41959.0,41952.0,8.452e-05]
[1646341365702,0.1,41958.0,41952.0,0.00025356]
[1646341366142,0.0477,41957.0,41952.0,0.00025356]
[1646341366344,0.0477,41957.0,41952.0,8.452e-05]
[1646341366345,0.143107,41955.0,41952.0,8.452e-05]
[1646341366542,0.131162,41954.0,41950.0,0.0001]
[1646341366740,0.9,41953.0,41950.0,0.0001]
[1646341366942,0.0477,41952.0,41950.0,0.0001]
[1646341367139,0.9,41951.0,41947.0,0.0011]
[1646341367340,0.26279623,41949.0,41947.0,0.0011]
[1646341367541,0.21063399,41948.0,41947.0,0.0011]
[1646341368543,0.21063399,41948.0,41947.0,0.0008]
[1646341369446,0.23445399,41948.0,41947.0,0.0008]
[1646341369645,0.33745399,41948.0,41947.0,0.0008]
[1646341370096,0.92382,41947.0,41944.0,8.369e-05]
[1646341370297,0.31363399,41948.0,41923.0,0.12115233]
[1646341370298,0.10452821,41942.0,41923.0,0.12115233]
[1646341370493,0.10452821,41942.0,41920.0,0.0021]
[1646341370494,0.059659,41940.0,41920.0,0.0021]
[1646341370693,0.059659,41940.0,41938.0,0.0011]
[1646341370694,0.4061558,41939.0,41938.0,0.0011]
[1646341370897,0.40576139,41939.0,41938.0,0.0011]
[1646341371097,0.8885974,41939.0,41938.0,0.0011]
[1646341371295,0.85,41938.0,41924.0,0.15950803]
[1646341371498,0.85,41938.0,41922.0,0.10933468]
[1646341371499,0.4061558,41937.0,41922.0,0.10933468]
[1646341371696,0.5061558,41937.0,41920.0,0.0021]
[1646341372098,0.9,41935.0,41912.0,0.025]
[1646341372297,0.9,41935.0,41910.0,0.19787684]
[1646341372298,0.1425,41929.0,41910.0,0.0011]
[1646341372499,0.02382,41921.0,41910.0,0.0011]
[1646341372698,0.02382,41916.0,41910.0,0.0011]
[1646341373097,0.083515,41912.0,41910.0,0.0011]
[1646341373299,0.0477,41911.0,41910.0,0.0011]
[1646341373745,0.0477,41911.0,41910.0,0.36381]
[1646341374144,0.0477,41911.0,41910.0,0.0011]
[1646341374344,0.0477,41911.0,41910.0,0.36381]
[1646341374543,0.119375,41915.0,41910.0,0.55491215]
[1646341374745,0.119375,41915.0,41914.0,0.02245865]
[1646341374946,0.119375,41915.0,41910.0,0.0011]
[1646341375542,0.119375,41915.0,41910.0,0.00117986]
[1646341375743,0.119375,41915.0,41911.0,0.20806147]
[1646341375744,0.121375,41915.0,41911.0,0.20806147]
[1646341375942,0.121375,41915.0,41914.0,0.02245865]
[1646341377589,0.119375,41915.0,41914.0,0.02245865]
[1646341378187,0.119375,41915.0,41910.0,0.0011]
[1646341378990,0.059694,41915.0,41910.0,0.0011]
[1646341379189,0.119358,41919.0,41912.0,0.36271]
[1646341379190,0.059674,41919.0,41912.0,0.36271]
[1646341379390,0.352148,41923.0,41911.0,0.20966959]
[1646341379391,0.119348,41923.0,41914.0,0.36271]
[1646341379591,0.119348,41923.0,41914.0,0.41041]
[1646341379790,0.2346,41930.0,41915.0,0.44684834]
[1646341379991,0.059668,41924.0,41916.0,0.7911356]
[1646341380189,0.2346,41930.0,41916.0,0.86787043]
[1646341380492,0.2346,41930.0,41917.0,0.36271]
[1646341380493,0.059668,41925.0,41917.0,0.36271]
[1646341380694,0.119332,41929.0,41918.0,0.0477]
[1646341380889,0.119332,41929.0,41919.0,0.0477]
[1646341381145,0.19841099,41927.0,41920.0,0.20546812]
[1646341381346,0.19841099,41927.0,41917.0,0.3569056]
[1646341381347,0.19841099,41927.0,41918.0,0.044]
[1646341381944,0.19841099,41927.0,41918.0,0.029]
[1646341382144,0.059661,41930.0,41918.0,0.029]
[1646341382443,0.059661,41930.0,41920.0,0.21043095]
[1646341383046,0.19527311,41928.0,41923.0,7.984e-05]
[1646341383443,0.19527311,41928.0,41923.0,0.00015968]
[1646341383643,0.19527311,41928.0,41923.0,0.00023952]
[1646341383847,0.20127311,41928.0,41923.0,0.00023952]
[1646341384045,0.20127311,41928.0,41923.0,0.00015968]
[1646341384245,0.20127311,41928.0,41915.0,0.36271]
[1646341384445,0.20127311,41928.0,41923.0,7.984e-05]
[1646341384894,0.20127311,41928.0,41923.0,0.00023952]
[1646341385095,0.19527311,41928.0,41923.0,0.00023952]
[1646341385297,0.059661,41930.0,41923.0,0.00023952]
[1646341385496,0.059661,41930.0,41923.0,7.984e-05]
[1646341385701,1.46852,41939.0,41923.0,7.984e-05]
[1646341385702,0.11931,41938.0,41924.0,1.43053]
[1646341385900,0.00371259,41945.0,41932.0,0.02382]
[1646341385901,0.059649,41939.0,41932.0,0.02382]
[1646341386101,0.00010356,41942.0,41934.0,0.02382]
[1646341386298,0.00031068,41942.0,41935.0,0.40671]
[1646341386700,0.02382,41949.0,41942.0,0.00062135]
[1646341386901,0.74752,41943.0,41910.0,0.4505]
[1646341387201,0.74752,41943.0,41910.0,0.0011]
[1646341387202,0.02382,41921.0,41910.0,0.0011]
[1646341387599,0.21698285,41913.0,41910.0,0.0011]
[1646341387801,0.24080285,41913.0,41910.0,0.0011]
[1646341388000,0.02382,41911.0,41910.0,0.0011]
[1646341388199,0.21543185,41911.0,41910.0,0.0011]
[1646341388664,0.25943185,41911.0,41910.0,0.0011]
[1646341389265,0.61353017,41911.0,41910.0,0.0011]
[1646341389662,0.71353017,41911.0,41908.0,0.00116068]
[1646341389865,0.71353017,41911.0,41902.0,0.00096426]
[1646341389866,0.02382,41907.0,41902.0,0.00096426]
[1646341390063,0.02382,41907.0,41901.0,0.00032142]
[1646341390064,0.983526,41906.0,41901.0,0.00032142]
[1646341390468,0.19768283,41905.0,41901.0,0.00032142]
[1646341390663,0.10917676,41902.0,41901.0,0.00032142]
[1646341390862,0.10807604,41902.0,41901.0,0.00032142]
[1646341391464,0.02382,41903.0,41901.0,0.00032142]
[1646341391465,0.059708,41903.0,41901.0,0.00032142]
[1646341391768,0.044,41902.0,41901.0,0.00032142]
[1646341391963,0.044,41904.0,41901.0,0.00032142]
[1646341392164,0.76383428,41903.0,41901.0,0.00032142]
[1646341392392,0.95893453,41903.0,41901.0,0.00032142]
[1646341392598,0.76383428,41903.0,41901.0,0.00032142]
[1646341393095,0.76383428,41903.0,41901.0,0.36303142]
[1646341393494,0.76383428,41903.0,41901.0,0.53030153]
[1646341393694,0.76383428,41903.0,41902.0,0.38516865]
[1646341394694,0.76383428,41903.0,41901.0,0.00132142]
[1646341394895,0.35094098,41902.0,41901.0,0.00132142]
[1646341395095,0.97061674,41903.0,41901.0,0.00132142]
[1646341395294,0.35094098,41902.0,41901.0,0.00032142]
[1646341395694,1.03031974,41903.0,41901.0,0.00032142]
[1646341395898,1.03431974,41903.0,41901.0,0.00032142]
[1646341396745,0.53609535,41902.0,41901.0,0.00032142]
[1646341397246,0.53609535,41902.0,41892.0,0.0147395]
[1646341397247,0.06680265,41897.0,41892.0,0.0147395]
[1646341397446,0.059724,41896.0,41892.0,0.0147395]
[1646341397647,0.62598187,41896.0,41892.0,0.0147395]
[1646341397857,0.35094098,41895.0,41892.0,0.0147395]
[1646341398646,0.68570544,41896.0,41892.0,0.0147395]
[1646341398647,0.62598187,41896.0,41892.0,0.0147395]
[1646341398850,0.56625787,41896.0,41892.0,0.0147395]
[1646341401297,0.54524375,41896.0,41892.0,0.0147395]
[1646341401497,0.54184375,41896.0,41894.0,0.0111]
[1646341402099,0.54184375,41896.0,41895.0,0.36271]
[1646341403744,0.54384375,41896.0,41895.0,0.36271]
[1646341404546,1.20147316,41904.0,41896.0,1.01683698]
[1646341404744,0.00047316,41904.0,41897.0,0.36271]
[1646341404946,0.00015772,41904.0,41903.0,0.16735593]
[1646341405145,0.059694,41905.0,41896.0,1.01683698]
[1646341405345,0.059694,41905.0,41897.0,0.36271]
[1646341405549,0.059694,41905.0,41898.0,7.558e-05]
[1646341405947,0.060694,41905.0,41898.0,0.00022674]
[1646341406152,0.001,41905.0,41899.0,0.59536065]
[1646341406347,0.001,41905.0,41899.0,0.57154065]
[1646341406947,0.001,41905.0,41904.0,0.36271]
[1646341407149,0.059688,41910.0,41904.0,0.36271]
[1646341407393,0.11937,41914.0,41904.0,0.36271]
[1646341407596,0.11937,41914.0,41905.0,0.35281512]
[1646341407795,0.11937,41914.0,41907.0,0.19941317]
[1646341407796,0.28877241,41914.0,41907.0,0.19941317]
[1646341407994,0.28877241,41914.0,41904.0,0.35581512]
[1646341408193,0.28877241,41914.0,41904.0,0.003]
[1646341408395,0.059689,41911.0,41904.0,0.003]
[1646341408794,0.05993096,41911.0,41904.0,0.003]
[1646341408993,0.06005194,41911.0,41900.0,0.01192]
[1646341409194,0.06005194,41911.0,41899.0,0.01192]
[1646341409195,0.47219271,41910.0,41899.0,0.01192]
[1646341409394,0.47219271,41910.0,41898.0,0.00020121]
[1646341409395,0.119404,41908.0,41898.0,0.00013414]
[1646341409593,0.119397,41906.0,41899.0,0.36271]
[1646341409794,0.119397,41906.0,41899.0,0.002]
[1646341410195,0.119397,41906.0,41904.0,0.01]
[1646341410196,0.00015547,41905.0,41904.0,0.01]
[1646341410397,0.00046641,41905.0,41904.0,0.01]
[1646341411041,0.00015547,41905.0,41904.0,0.01]
[1646341411242,0.16879314,41905.0,41904.0,0.01]
[1646341411443,0.17909978,41906.0,41904.0,0.01]
[1646341411644,0.119397,41906.0,41904.0,0.01]
[1646341412044,0.003,41905.0,41904.0,0.01]
[1646341412244,0.003,41905.0,41904.0,0.37271]
[1646341412642,0.003,41905.0,41904.0,0.694129]
[1646341413043,0.003,41905.0,41904.0,0.56118614]
[1646341413846,0.003,41905.0,41904.0,0.56418614]
[1646341414044,0.003,41905.0,41904.0,0.72214197]
[1646341415193,0.00035415,41907.0,41904.0,0.71914197]
[1646341415496,0.059683,41911.0,41906.0,0.38516865]
[1646341415699,0.059677,41915.0,41908.0,0.36271]
[1646341415994,0.673475,41928.0,41910.0,0.36271]
[1646341415995,0.665946,41926.0,41910.0,0.36271]
[1646341416201,0.665946,41926.0,41912.0,0.36271]
[1646341416394,0.171578,41922.0,41912.0,0.36271]
[1646341416593,0.171578,41922.0,41911.0,0.044]
[1646341416795,0.119363,41919.0,41904.0,0.014]
[1646341416997,0.35281512,41918.0,41905.0,0.36271]
[1646341417193,0.059682,41915.0,41905.0,0.36271]
[1646341417394,0.53512189,41918.0,41915.0,0.11936399]
[1646341417594,0.18230677,41918.0,41915.0,0.11936399]
[1646341418003,0.179052,41917.0,41915.0,0.11936399]
[1646341418196,0.37547078,41916.0,41915.0,0.11936399]
[1646341418844,0.119388,41913.0,41904.0,0.01]
[1646341419044,0.05969355,41910.0,41904.0,0.01]
[1646341419545,0.35108758,41909.0,41904.0,0.01]
[1646341419743,0.39228264,41908.0,41904.0,0.01]
[1646341420144,0.53550952,41908.0,41904.0,0.01]
[1646341420346,0.17911,41907.0,41904.0,0.01]
[1646341422146,0.35821971,41907.0,41904.0,0.01]
[1646341423294,0.05970247,41906.0,41904.0,0.01]
[1646341423891,0.08652247,41906.0,41904.0,0.01]
[1646341424292,0.43761005,41906.0,41904.0,0.01]
[1646341424492,0.35108758,41905.0,41904.0,0.01]
[1646341424695,0.37490758,41905.0,41904.0,0.01]
[1646341424893,0.37490758,41905.0,41896.0,0.11683698]
[1646341424894,0.14325,41903.0,41896.0,0.11683698]
[1646341425091,0.179145,41901.0,41896.0,0.11683698]
[1646341425293,0.36636973,41900.0,41896.0,0.11683698]
[1646341425896,0.37036973,41900.0,41896.0,0.11683698]
[1646341426144,0.02382,41899.0,41896.0,0.11683698]
[1646341426344,0.083535,41899.0,41896.0,0.11683698]
[1646341426543,0.143249,41899.0,41896.0,0.11683698]
[1646341426744,0.119429,41899.0,41896.0,0.11683698]
[1646341427748,0.02382,41898.0,41896.0,0.11673698]
[1646341427946,0.143271,41898.0,41896.0,0.11673698]
[1646341428146,0.02382,41896.0,41888.0,0.0002817]
[1646341428450,0.02382,41894.0,41881.0,0.0011]
[1646341428646,0.02382,41894.0,41892.0,0.01480567]
[1646341428845,0.179171,41895.0,41881.0,0.0011]
[1646341428846,0.02382,41892.0,41881.0,0.0011]
[1646341429046,0.143267,41891.0,41881.0,0.0011]
[1646341429246,0.37271988,41890.0,41881.0,0.0011]
[1646341429451,0.02382,41888.0,41886.0,0.00026471]
[1646341429649,0.19964983,41887.0,41886.0,0.00026471]
[1646341429907,0.02382,41885.0,41880.0,0.001]
[1646341430109,0.143294,41885.0,41880.0,0.001]
[1646341430308,0.34889988,41884.0,41880.0,0.001]
[1646341430607,0.40863663,41884.0,41880.0,0.001]
[1646341430809,0.05973675,41884.0,41880.0,0.001]
[1646341431606,0.11947275,41884.0,41880.0,0.001]
[1646341431805,0.11947275,41884.0,41880.0,0.00107097]
[1646341431806,0.16347275,41884.0,41880.0,0.00107097]
[1646341432006,0.16647275,41884.0,41880.0,0.00114194]
[1646341432205,0.16647275,41884.0,41880.0,0.00121291]
[1646341432606,0.33585152,41884.0,41880.0,0.00121291]
[1646341432807,0.33585152,41884.0,41880.0,0.001]
[1646341433207,0.05974,41883.0,41880.0,0.00107097]
[1646341433670,0.05974,41883.0,41880.0,0.00121291]
[1646341433671,0.02382,41883.0,41880.0,0.00121291]
[1646341433859,0.11947275,41884.0,41880.0,0.00121291]
[1646341434062,0.11947275,41884.0,41880.0,0.00114194]
[1646341434256,0.11947275,41884.0,41880.0,0.00107097]
[1646341434456,0.11947275,41884.0,41880.0,0.001]
[1646341434657,0.14329275,41884.0,41880.0,0.00107097]
[1646341434859,0.11947275,41884.0,41880.0,0.00107097]
[1646341435060,0.11947275,41884.0,41880.0,0.00121291]
[1646341435258,0.18682848,41883.0,41880.0,0.00121291]
[1646341435662,0.18682848,41883.0,41880.0,0.00107097]
[1646341435859,0.18682848,41883.0,41880.0,0.001]
[1646341436265,0.163484,41882.0,41876.0,0.001]
[1646341436462,0.22322171,41882.0,41876.0,0.001]
[1646341436761,0.24704171,41882.0,41876.0,0.001]
[1646341436959,0.18729871,41882.0,41876.0,0.001]
[1646341437396,0.02382,41880.0,41876.0,0.001]
[1646341437595,0.70517871,41882.0,41876.0,0.001]
[1646341438197,0.34889988,41881.0,41876.0,0.001]
[1646341438496,0.059741,41882.0,41876.0,0.001]
[1646341439700,0.291623,41886.0,41876.0,0.001]
[1646341439901,0.001,41887.0,41876.0,0.002]
[1646341440098,0.001,41887.0,41881.0,0.1538402]
[1646341440499,0.001,41887.0,41881.0,0.1513402]
[1646341441145,0.119435,41891.0,41881.0,0.1513402]
[1646341441347,0.059716,41891.0,41889.0,0.31412849]
[1646341441553,0.713937,41896.0,41889.0,0.12271861]
[1646341441554,0.5945,41896.0,41889.0,0.12271861]
[1646341441747,0.6237,41899.0,41883.0,0.06782]
[1646341441947,0.6237,41899.0,41889.0,0.004]
[1646341442153,0.9734,41901.0,41889.0,0.004]
[1646341442348,0.0001207,41895.0,41889.0,0.004]
[1646341442552,0.0002414,41895.0,41894.0,0.36271]
[1646341442749,0.0003621,41895.0,41894.0,0.38516865]
[1646341442948,0.0002414,41895.0,41894.0,0.38516865]
[1646341443148,0.0001207,41895.0,41894.0,0.82705438]
[1646341443348,0.8653,41909.0,41894.0,0.82705438]
[1646341443548,0.1194,41906.0,41894.0,0.44188573]
[1646341443748,0.059696,41907.0,41894.0,0.44188573]
[1646341443951,0.9847,41909.0,41895.0,0.044]
[1646341443952,0.00011361,41897.0,41895.0,0.044]
[1646341444154,0.00022722,41897.0,41896.0,0.71160988]
[1646341444650,0.00011361,41897.0,41896.0,0.71160988]
[1646341444906,0.19241333,41902.0,41896.0,0.36271]
[1646341445106,0.19241333,41902.0,41895.0,0.044]
[1646341445307,0.00011361,41899.0,41895.0,0.044]
[1646341445508,0.00022722,41899.0,41892.0,0.15]
[1646341445707,0.00022722,41899.0,41890.0,0.19968143]
[1646341445708,0.00034083,41899.0,41890.0,0.19968143]
[1646341445907,0.00034083,41899.0,41895.0,0.004]
[1646341446114,0.00022722,41899.0,41895.0,0.004]
[1646341446309,0.37004366,41901.0,41895.0,0.0034]
[1646341446310,0.02382,41901.0,41895.0,0.0034]
[1646341446509,0.37271988,41901.0,41895.0,0.0034]
[1646341446908,0.18044335,41898.0,41895.0,0.0034]
[1646341447107,0.18044335,41898.0,41884.0,0.38841875]
[1646341447307,0.18044335,41898.0,41884.0,0.1902808]
[1646341448310,0.00015099,41893.0,41885.0,0.17205058]
[1646341448545,0.00045297,41893.0,41883.0,0.06401557]
[1646341448845,0.00045297,41893.0,41882.0,0.34889988]
[1646341449045,0.00030198,41893.0,41882.0,0.34889988]
[1646341449249,0.2284,41900.0,41882.0,0.34889988]
[1646341449448,0.2284,41900.0,41889.0,0.10507575]
[1646341449848,0.2284,41900.0,41893.0,0.19775065]
[1646341450249,0.03515551,41902.0,41889.0,0.10507575]
[1646341450449,0.01515551,41902.0,41889.0,0.16478475]
[1646341450648,0.01515551,41902.0,41890.0,0.17736853]
[1646341451249,0.00016454,41898.0,41889.0,0.16478475]
[1646341451449,0.00032908,41898.0,41889.0,0.16478475]
[1646341451648,0.00049362,41898.0,41889.0,0.16478475]
[1646341451953,0.00232908,41898.0,41889.0,0.16478475]
[1646341452152,0.00232908,41898.0,41894.0,0.17251344]
[1646341452153,0.00216454,41898.0,41894.0,0.17251344]
[1646341452404,0.00216454,41898.0,41896.0,0.422402]
[1646341452405,0.002,41898.0,41896.0,0.422402]
[1646341452598,0.002,41898.0,41897.0,0.90406924]
[1646341452800,0.4494,41914.0,41898.0,0.904]
[1646341453001,0.4494,41914.0,41912.0,0.1083702]
[1646341453198,0.2463,41919.0,41912.0,0.1083702]
[1646341453398,0.4494,41920.0,41912.0,0.1680442]
[1646341453598,1.246,41925.0,41912.0,0.1680442]
[1646341453798,0.6487,41925.0,41913.0,0.34735924]
[1646341454000,0.6487,41925.0,41914.0,0.36271]
[1646341454198,0.6487,41925.0,41922.0,0.1963708]
[1646341454399,0.832,41935.0,41921.0,0.09935739]
[1646341454800,0.13613955,41934.0,41921.0,0.09935739]
[1646341454999,0.96813955,41935.0,41921.0,0.09935739]
[1646341455199,0.02382,41934.0,41921.0,0.09935739]
[1646341455399,0.1578497,41930.0,41922.0,0.20817959]
[1646341455600,0.1578497,41930.0,41917.0,0.34735924]
[1646341456045,0.00321912,41930.0,41917.0,0.34935924]
[1646341456247,0.3,41920.0,41917.0,0.34935924]
[1646341456446,0.3,41920.0,41918.0,0.36271]
[1646341456848,0.3,41920.0,41917.0,0.002]
[1646341457249,0.3,41920.0,41912.0,0.119338]
[1646341457948,0.3,41920.0,41913.0,0.36271]
[1646341458148,0.3,41920.0,41914.0,0.21414088]
[1646341458349,0.3,41920.0,41918.0,0.05735238]
[1646341458649,0.3,41920.0,41917.0,0.36271]
[1646341458948,0.3,41920.0,41919.0,0.52811452]
[1646341459249,0.3,41920.0,41919.0,0.36271]
[1646341459910,0.3,41920.0,41918.0,0.24949649]
[1646341460103,0.3,41920.0,41919.0,0.005]
[1646341461207,0.3,41920.0,41919.0,0.77472824]
[1646341461406,0.3,41920.0,41919.0,0.79218689]
[1646341461605,0.3,41920.0,41919.0,0.44482765]
[1646341461806,0.3,41920.0,41919.0,0.62304581]
[1646341462007,0.29973318,41920.0,41919.0,0.63004581]
[1646341462410,0.29973318,41920.0,41919.0,0.45182765]
[1646341462608,0.29973318,41920.0,41919.0,0.49582765]
[1646341463209,0.29973318,41920.0,41919.0,0.48882765]
[1646341463408,0.29973318,41920.0,41919.0,1.19902761]
[1646341463845,0.29973318,41920.0,41919.0,1.91468761]
[1646341464044,0.29973318,41920.0,41919.0,1.21148765]
[1646341465244,0.29973318,41920.0,41919.0,1.20448765]
[1646341465742,0.29473318,41920.0,41919.0,1.20448765]
[1646341466146,0.9,41917.0,41911.0,0.36329]
[1646341466348,0.02382,41911.0,41898.0,0.004]
[1646341466547,0.363329,41899.0,41898.0,0.004]
[1646341466744,0.363329,41899.0,41890.0,0.0011936]
[1646341466745,0.02382,41895.0,41890.0,0.0011936]
[1646341466947,0.363329,41892.0,41890.0,0.0011936]
[1646341467145,0.9,41898.0,41890.0,0.0011936]
[1646341467146,0.79232961,41891.0,41890.0,0.0011936]
[1646341467600,0.57761261,41891.0,41890.0,0.0011936]
[1646341467798,0.41517924,41891.0,41890.0,9.36e-05]
[1646341468001,0.79342824,41891.0,41890.0,9.36e-05]
[1646341468200,0.446069,41891.0,41890.0,9.36e-05]
[1646341468399,0.08274,41891.0,41879.0,0.0011]
[1646341468598,0.047,41891.0,41879.0,0.0011]
[1646341468802,0.047,41891.0,41885.0,0.363329]
[1646341469099,0.047,41891.0,41879.0,0.0011]
[1646341469298,0.363329,41890.0,41879.0,0.0011]
[1646341469498,0.044,41889.0,41882.0,0.17904609]
[1646341469698,0.044,41888.0,41882.0,0.28605907]
[1646341469901,0.044,41887.0,41882.0,0.28605907]
[1646341470104,0.044,41887.0,41879.0,0.0021]
[1646341470501,0.039,41887.0,41879.0,0.0021]
[1646341470901,0.039,41887.0,41883.0,7.108e-05]
[1646341471350,0.039,41887.0,41883.0,0.00014216]
[1646341471550,0.039,41887.0,41883.0,0.00021324]
[1646341471951,0.039,41887.0,41883.0,0.00014216]
[1646341471952,0.059725,41886.0,41883.0,0.00014216]
[1646341472152,0.059725,41886.0,41879.0,0.0011]
[1646341473751,0.059725,41886.0,41880.0,7.056e-05]
[1646341473953,0.119446,41891.0,41880.0,7.056e-05]
[1646341473954,0.059718,41890.0,41880.0,7.056e-05]
[1646341474154,0.059718,41890.0,41880.0,0.00014112]
[1646341474354,0.059718,41890.0,41880.0,0.00021168]
[1646341474797,0.02382,41889.0,41880.0,0.00014112]
[1646341474995,0.02382,41889.0,41879.0,0.0011]
[1646341474996,0.363329,41889.0,41879.0,0.0011]
[1646341475195,0.17128218,41889.0,41883.0,0.10920727]
[1646341475404,0.363329,41889.0,41883.0,0.10920727]
[1646341475794,0.387149,41889.0,41883.0,0.10920727]
[1646341475995,0.363329,41889.0,41883.0,0.10920727]
[1646341476198,0.059718,41890.0,41883.0,0.10920727]
[1646341476594,0.05592,41892.0,41883.0,0.10920727]
[1646341476595,0.04410002,41892.0,41883.0,0.10920727]
[1646341476794,0.04420004,41892.0,41883.0,0.10920727]
[1646341476996,0.04430006,41892.0,41883.0,0.10920727]
[1646341477395,0.04430006,41892.0,41886.0,0.20289635]
[1646341477596,0.04410002,41892.0,41883.0,0.10920727]
[1646341477798,0.044,41892.0,41884.0,6.79e-05]
[1646341478102,0.0441204,41892.0,41884.0,6.79e-05]
[1646341478300,0.0442408,41892.0,41884.0,0.0001358]
[1646341478546,0.0003612,41892.0,41886.0,0.19876881]
[1646341478750,0.0003612,41892.0,41884.0,0.0002037]
[1646341478946,0.0003612,41892.0,41884.0,6.79e-05]
[1646341478947,0.0001204,41892.0,41884.0,6.79e-05]
[1646341479246,0.05971,41895.0,41890.0,0.11132298]
[1646341479850,0.00030156,41892.0,41885.0,0.363329]
[1646341480046,0.00045234,41892.0,41884.0,0.0002037]
[1646341480248,0.00045234,41892.0,41885.0,0.363329]
[1646341480546,0.00015078,41892.0,41885.0,0.363329]
[1646341480751,0.33347848,41898.0,41888.0,0.12267372]
[1646341480946,0.20884739,41896.0,41889.0,0.16567341]
[1646341481147,0.00015078,41892.0,41888.0,0.12267372]
[1646341481349,0.00045234,41892.0,41888.0,0.12267372]
[1646341481968,0.059704,41899.0,41888.0,0.12267372]
[1646341482149,0.001,41897.0,41888.0,0.12467372]
[1646341482632,0.00011519,41892.0,41888.0,0.12467372]
[1646341482828,0.00034557,41892.0,41889.0,0.363329]
[1646341483228,0.00023038,41892.0,41888.0,0.002]
[1646341483432,0.00011519,41892.0,41886.0,0.21310744]
[1646341483629,0.19950495,41898.0,41886.0,0.21310744]
[1646341483828,0.3557629,41902.0,41886.0,0.21310744]
[1646341484230,0.3557629,41902.0,41889.0,0.0969496]
[1646341484830,0.17127321,41900.0,41892.0,0.16423311]
[1646341485028,0.059705,41899.0,41892.0,0.16423311]
[1646341485430,0.059705,41899.0,41889.0,0.0969496]
[1646341486247,0.084525,41899.0,41889.0,0.0969496]
[1646341486449,0.084525,41899.0,41890.0,0.19545953]
[1646341486648,0.084525,41899.0,41889.0,0.0969496]
[1646341486851,0.000333,41896.0,41889.0,0.0969496]
[1646341487052,0.0004995,41896.0,41889.0,0.0969496]
[1646341487449,0.000333,41896.0,41889.0,0.0969496]
[1646341487651,0.0001665,41896.0,41889.0,0.0969496]
[1646341487851,0.059705,41899.0,41889.0,0.0969496]
[1646341488051,0.059705,41899.0,41889.0,0.0999496]
[1646341488252,0.00033302,41895.0,41890.0,0.363329]
[1646341488452,0.00049953,41895.0,41889.0,0.003]
[1646341488855,0.00049953,41895.0,41890.0,0.363329]
[1646341489052,0.001,41901.0,41895.0,0.00116556]
[1646341489253,0.001,41901.0,41896.0,0.15882586]
[1646341489454,0.059697,41905.0,41897.0,0.12784191]
[1646341489655,0.059697,41905.0,41899.0,0.20598116]
[1646341489911,0.059693,41906.0,41897.0,0.45978481]
[1646341490107,0.059693,41906.0,41897.0,0.12784191]
[1646341490908,0.059693,41906.0,41899.0,0.37953932]
[1646341491312,0.0003315,41904.0,41899.0,0.37953932]
[1646341491508,0.00049725,41904.0,41900.0,0.363329]
[1646341491808,0.00049725,41904.0,41899.0,0.16526085]
[1646341492008,0.0003315,41904.0,41900.0,0.363329]
[1646341492210,0.059687,41910.0,41900.0,0.002]
[1646341492407,0.001,41909.0,41900.0,0.002]
[1646341492609,0.00016575,41904.0,41900.0,0.002]
[1646341492909,0.00049725,41904.0,41901.0,0.363329]
[1646341493308,0.00049725,41904.0,41900.0,0.002]
[1646341493556,0.059693,41906.0,41900.0,0.002]
[1646341493758,0.6952719,41905.0,41890.0,0.01192]
[1646341493958,0.17882804,41902.0,41895.0,0.16125884]
[1646341494154,0.17882804,41902.0,41895.0,0.00316556]
[1646341494357,0.3557629,41901.0,41895.0,0.00316556]
[1646341495456,0.00010696,41900.0,41895.0,0.00116556]
[1646341495657,0.00021392,41900.0,41895.0,0.00116556]
[1646341495857,0.00032088,41900.0,41895.0,0.00116556]
[1646341496259,0.083536,41898.0,41895.0,0.00116556]
[1646341496465,0.3997629,41897.0,41895.0,0.00116556]
[1646341496657,0.7190919,41896.0,41895.0,6.556e-05]
[1646341496858,0.3997629,41896.0,41895.0,6.556e-05]
[1646341499611,0.214717,41888.0,41863.0,0.19774819]
[1646341499807,0.214717,41888.0,41862.0,0.0011]
[1646341499808,0.02382,41874.0,41862.0,0.0011]